Workbook

Sheet Single Output
B1: Calculation tool for fixed frequency flyback converter using Gen5 CoolSET™ (Version 1.1)
B3: Project:
B4: Application:
B5: CoolSET: | D5: ICE5AR4780BZS
B6: Date:
B7: Revision:
B9: Notes:
B10: Enter design variables in yellow coloured cells
B11: Read design results in green coloured cells
B12: Select component values based on standard values available
B13: Voltage/current rating does not include design margin, voltage spikes and transient currents.
B14: In the "Output regulation", only fill-in either isolated or non-isolated whichever is applicable.
D15: Description | E15: Eq. # | F15: Parameter | G15: Unit | H15: Value
B16: Input, output, CoolSET™ Specs
C17: Line input
C18: Input | D18: Minimum AC input voltage | F18: VACMin | G18: [V] | H18: 85
C19: Input | D19: Maximum AC input voltage | F19: VACMax | G19: [V] | H19: 330
C20: Input | D20: Line frequency | F20: fAC | G20: [Hz] | H20: 60
C21: Input | D21: Bus capacitor DC ripple voltage | F21: VDCRipple | G21: [V] | H21: 27
C23: Output 1 Specs
C24: Input | D24: Output voltage 1 | F24: VOut1 | G24: [V] | H24: 15
C25: Input | D25: Output current 1 | F25: IOut1 | G25: [A] | H25: 0.963
C26: Input | D26: Forward voltage of output diode 1 | F26: VFOut1 | G26: [V] | H26: 0.6
C27: Input | D27: Output ripple voltage 1 | F27: VOutRipple1 | G27: [V] | H27: 0.2
C28: result | D28: Output power 1 | F28: POut1 | G28: [W] | H28: =H25*H24 -> 14.445
C30: Auxiliary
C31: Input | D31: Vcc Voltage | F31: VVcc | G31: [V] | H31: 14
C32: Input | D32: Forward voltage of Vcc diode(D2) | F32: VF Vcc | G32: [V] | H32: 0.6
C34: Power
C35: Input | D35: Efficency | F35: η | H35: 0.83
C36: result | D36: Nominal output power | F36: POutNom | G36: [W] | H36: =H28 -> 14.445
C37: Input | D37: Maximum output power for overload protection | F37: POutMax | G37: [W] | H37: 17 | I37: =IF(H37<H36,"Caution! PoutMax should be higher than PoutNom","") -> 
C38: result | D38: Maximum input power for overload protection | F38: PInMax | G38: [W] | H38: =H37/H35 -> 20.48192771
C39: Input | D39: Minimum output power | F39: POutMin | G39: [W] | H39: 2
C41: Controller/CoolSET™
D42: Controller/ CoolSETTM | H42: =D5 -> ICE5AR4780BZS
C43: Input | D43: Switching frequency | F43: fS | G43: [Hz] | H43: 100000
C44: Input | D44: Targeted Max. Drain Source voltage | F44: VDSMax | G44: [V] | H44: 700
C45: Input | D45: Max. ambient temperature | F45: Tamax | G45: [°C] | H45: 50
B47: Diode bridge and input capacitor
C48: Diode bridge
C49: Input | D49: Power factor | F49: cosϕ | H49: 0.6
C50: result | D50: Maximum AC input current | F50: IACRMS | G50: [A] | H50: =H38/H18/H49 -> 0.4016064257
C51: result | D51: Peak voltage at VACMax | F51: VDCMaxPk | G51: [V] | H51: =H$19*SQRT(2) -> 466.6904756
C53: Input capacitor
C54: result | D54: Peak voltage at VACMin | F54: VDCMinPk | G54: [V] | H54: =H18*SQRT(2) -> 120.2081528
C55: result | D55: Selected minimum DC input voltage | F55: VDCMinSet | G55: [V] | H55: =(H54-H21) -> 93.2081528
C56: result | D56: Discharging time at each half-line cycle | F56: TD | G56: [ms] | H56: =(1000/(4*H20))*(1+(ASIN((H54-H21)/H54)*180/PI()/90)) -> 6.520387471
C57: result | D57: Required energy at discharging time of input capacitor | F57: WIn | G57: [Ws] | H57: =H38*H56/1000 -> 0.1335501048
C58: result | D58: Calculated input capacitor | F58: CINCal | G58: [uF] | H58: =(2*H57/(H54^2-(H54-H21)^2))*1000000 -> 46.35353578
C59: Input | D59: Select input capacitor (C1) | F59: Cin | G59: [uF] | H59: 47
C60: result | D60: Calculated minimum DC input voltage | F60: VDCMin | G60: [V] | H60: =SQRT(H54^2-2*H57/(H59*0.000001)) -> 93.63234919
B62: Transformer design
C63: Drain voltage and current waveform
C67: Primary inductance and winding currents
C68: Input | D68: Reflection voltage | F68: VRSET | G68: [V] | H68: 97.5
C69: result | D69: Maximum duty cycle | F69: DMax | H69: =H68/(H68+H60) -> 0.5101177295
C70: Input | D70: Select current ripple factor | F70: KRF | H70: 1
C71: result | D71: Primary inductance | F71: LP | G71: [H] | H71: =(H60*H69)^2/(2*H38*H43*H70) -> 0.0005569187643
C72: result | D72: Primary turn-on average current | F72: IAV | G72: [A] | H72: =H38/(H60*H69) -> 0.4288194656
C73: result | D73: Primary peak-to-peak current | F73: ΔI | G73: [A] | H73: =H60*H69/(H71*H43) -> 0.8576389312
C74: result | D74: Primary peak current | F74: IPMax | G74: [A] | H74: =H72+(H73/2) -> 0.8576389312
C75: result | D75: Primary valley current | F75: IValley | G75: [A] | H75: =H74-H73 -> 0
C76: result | D76: Primary RMS current | F76: IPRMS | G76: [A] | H76: =SQRT((3*H72^2+(H73/2)^2)*H69/3) -> 0.3536544023
C78: Select core type
C79: Input | D79: Select core type | H79: 1 | K79: 1 | L79: 2 | M79: 3 | N79: 4 | O79: 5 | P79: 6 | Q79: 7 | R79: 8 | S79: 9 | T79: 10
C80: result | D80: Core Type | H80: =IF($H$79=1,K80,IF($H$79=2,L80,IF($H$79=3,M80,IF($H$79=4,N80,IF($H$79=5,O80,IF($H$79=6,P80,IF($H$79=7,Q80,IF($H$79=8,R80,IF($H$79=9,S80,IF($H$79>=10,T80)))))))))) -> EE20/10/6 | J80: Core Type | K80: EE20/10/6 | L80: E25/13/7 | M80: E30/15/7 | N80: E32/16/9 | O80: E36/18/11 | P80: E42/21/15 | Q80: ETD29/16/10 | R80: ER28/14 | S80: ER28/17
C81: result | D81: Core Material | H81: TP4A(TDG) | J81: Core Material | K81: TP4A(TDG) | L81: N87 | M81: TP4A(TDG) | N81: N87 | O81: N87 | P81: N87 | Q81: N87 | R81: TP4A(TDG) | S81: TP4A(TDG)
C82: result | D82: Maximum flux density | F82: BMax | G82: [T] | H82: 0.2 | J82: Bmax | K82: 0.2 | L82: 0.2 | M82: 0.25 | N82: 0.2 | O82: 0.2 | P82: 0.2 | Q82: 0.2 | R82: 0.2 | S82: 0.2
C83: result | D83: Cross sectional area | F83: Ae | G83: [mm²] | H83: 32 | J83: Ae | K83: 32 | L83: 52 | M83: 59 | N83: 83 | O83: 120 | P83: 178 | Q83: 76 | R83: 82.1 | S83: 81.4
C84: result | D84: Bobbin width | F84: BW | G84: [mm] | H84: 11 | J84: BW | K84: 11 | L84: 15.6 | M84: 17.3 | N84: 20.1 | O84: 21.5 | P84: 26.3 | Q84: 21 | R84: 16 | S84: 21.69
C85: result | D85: Winding cross section | F85: AN | G85: [mm2] | H85: 34 | J85: AN | K85: 34 | L85: 61 | M85: 90 | N85: 108.5 | O85: 122.5 | P85: 177 | Q85: 97 | R85: 68.8 | S85: 95.21
C86: result | D86: Average length of turn | F86: lN | G86: [mm] | H86: 41.2 | J86: lN | K86: 41.2 | L86: 50 | M86: 56 | N86: 64.4 | O86: 76.4 | P86: 87 | Q86: 52.8 | R86: 50 | S86: 48.9
C88: Winding calculation
C89: result | D89: Calculated minimum number of primary turns | F89: NPCal | G89: turns | H89: =H74*H71*1000000/(H82*H83) -> 74.63050215
C90: Input | D90: Select number of primary turns | F90: NP | G90: turns | H90: 78
C91: result | D91: Calculated number of secondary 1 turns | F91: NS1Cal | G91: turns | H91: =H$90*(H$24+H$26)/H$68 -> 12.48
C92: Input | D92: Select number of secondary 1 turns | F92: NS1 | G92: turns | H92: 12
C93: result | D93: Calculated number of auxiliary turns | F93: NVccCal | G93: turns | H93: =(H$31+H$32)*H90/(H99) -> 11.23076923
C94: Input | D94: Select number of auxiliary turns | F94: NVcc | G94: turns | H94: 11
C95: result | D95: Calculated VCC voltage | F95: VVccCal | G95: [V] | H95: =((H24+H26)*H94/H92)-H32 -> 13.7
C97: Post calculation
C98: result | D98: Primary to secondary 1 turns ratio | F98: NPS1 | H98: =H90/H92 -> 6.5
C99: result | D99: Post calculated reflected voltage | F99: VRPost | G99: [V] | H99: =(H24+H26)*H90/H92 -> 101.4
C100: result | D100: Post calculated maximum duty cycle | F100: DMaxPost | H100: =H99/(H99+H60) -> 0.5199137498
C101: result | D101: Duty cycle prime | F101: DMax' | H101: =H71*(H74-H75)*H43/H99 -> 0.4710406447
C102: result | D102: Actual flux density | F102: BMaxAct | G102: [T] | H102: =H71*H74*1000000/(H90*H$83) -> 0.1913602619 | I102: =IF(H102>H82,"Caution! Flux density too large, increase primary turns (cell H96)","") -> 
C103: result | D103: Maximum DC input voltage for CCM operation | F103: VDCmaxCCM | G103: [V] | H103: =((1/SQRT(2*H38*H71*H43))-(1/H99))^-1 -> 90.29714835
C105: Transformer winding design
C106: Input | D106: Margin according to safety standard | F106: M | G106: [mm] | H106: 0
C107: Input | D107: Copper space factor | F107: fCu | H107: 0.4
C108: result | D108: Effective bobbin window | F108: BWE | G108: [mm] | H108: =H84-(2*H106) -> 11
C109: result | D109: Effective winding cross section | F109: ANe | G109: [mm²] | H109: =H85*H108/H84 -> 34
C110: Input | D110: Primary winding area factor | F110: AFNP | H110: 0.5
C111: Input | D111: Secondary 1 winding area factor | F111: AFNS1 | H111: 0.45
C112: Input | D112: Auxiliary winding area factor | F112: AFNVcc | H112: 0.05 | I112: =IF(H110+H111+H112>1,"Caution! Total winding factor should be ≤1", "") -> 
C114: Primary winding
C115: result | D115: Calculated wire copper cross sectional area | F115: APCal | G115: [mm²] | H115: =H110*H107*H109/H90 -> 0.08717948718
C116: result | D116: Calculated maximum wire size | F116: AWGPCal | H116: =9.97*(1.8277-(2*LOG(2*SQRT(H115/PI())))) -> 27.74028445
C117: Input | D117: Select wire size | F117: AWGP | H117: 30
C118: Input | D118: Select number of parallel wire | F118: nwP | H118: 1
C119: result | D119: Wire copper diameter | F119: dP | G119: [mm] | H119: =POWER(10,((1.8277/2)-(H117/2/9.97))) -> 0.256647158
C120: result | D120: Wire copper cross sectional area | F120: AP | G120: [mm2] | H120: =(POWER(10,((1.8277/2)-(H117/2/9.97)))/2)^2*PI()*H118 -> 0.05173242063 | I120: =IF(H120>H115,"Caution! Cross sectional area too large, reduce wire size (cell C126)","") -> 
C121: result | D121: Wire current density | F121: SP | G121: [A/mm2] | H121: =H76/H120 -> 6.836223745 | I121: =IF(H121>8,"Caution! Current density too high, increase wire size (cell H126)","") -> 
C122: Input | D122: Insulation thickness | F122: INSP | G122: [mm] | H122: 0.01
C123: result | D123: Turns per layer | F123: NLP | G123: turns/layer | H123: =MIN(ROUNDDOWN(H108/((H119+(2*H122))*H118),0),H90) -> 39
C124: result | D124: Number of layers | F124: LnP | G124: layers | H124: =ROUNDUP(H90/H123,0) -> 2
C126: Secondary 1 winding
C127: result | D127: Calculated wire copper cross sectional area | F127: ANS1Cal | G127: [mm²] | H127: =H111*H107*H109/H92 -> 0.51
C128: result | D128: Calculated maximum wire size | F128: AWGS1Cal | H128: =9.97*(1.8277-(2*LOG(2*SQRT(H127/PI())))) -> 20.09174046
C129: Input | D129: Select wire size | F129: AWGS1 | H129: 25
C130: Input | D130: Select number of parallel wire | F130: nwS1 | H130: 2
C131: result | D131: Wire copper diameter | F131: dS1 | G131: [mm] | H131: =POWER(10,((1.8277/2)-(H129/2/9.97))) -> 0.4571815715
C132: result | D132: Wire copper cross sectional area | F132: AS1 | G132: [mm2] | H132: =PI()*H131^2*H130/4 -> 0.3283199775 | I132: =IF(H132>H127,"Caution! Cross sectional area too large, reduce wire size (cell C138)","") -> 
C133: result | D133: Peak current | F133: IS1Max | G133: [A] | H133: =H74*H98 -> 5.574653053
C134: result | D134: RMS current | F134: IS1RMS | G134: [A] | H134: =H76*SQRT((1-H100)/H100)*H98 -> 2.208952655
C135: result | D135: Wire current density | F135: SS1 | G135: [A/mm2] | H135: =H134/H132 -> 6.728048264 | I135: =IF(H135>8,"Caution! Current density too high, increase wire size (cell H138)","") -> 
C136: Input | D136: Insulation thickness | F136: INSS1 | G136: [mm] | H136: 0.01
C137: result | D137: Turns per layer | F137: NLS1 | G137: turns/layer | H137: =MIN(ROUNDDOWN(H108/((H131+(2*H136))*H130),0),H92) -> 11
C138: result | D138: Number of layers | F138: LnS1 | G138: layers | H138: =ROUNDUP(H92/H137,0) -> 2
B141: RCD clamper and current sense resistor
C142: RCD clamper circuit
C143: Input | D143: Leakage inductance percentage | F143: LLK% | G143: [%] | H143: 2.5
C144: result | D144: Leakage inductance | F144: LLK | G144: [H] | H144: =H143*H71/100 -> 1.392296911e-05
C145: result | D145: Clamping voltage | F145: VClamp | G145: [V] | H145: =H44-H51-H99 -> 131.9095244
C146: result | D146: Calculated clamping capacitor | F146: CClampCal | G146: [nF] | H146: =H144*H74^2/((H145*(H99+H145)))*1000000000 -> 0.3327608388
C147: Input | D147: Select clamping capacitor value (C2) | F147: Cclamp | G147: [nF] | H147: 1
C148: result | D148: Calculated clamping resistor | F148: RclampCal | G148: [kΩ] | H148: =((H99+H145)^2-H99^2)/(H144*H74^2*H43*0.5*1000) -> 86.22503664
C149: Input | D149: Select clamping resistor value (R4) | F149: Rclamp | G149: [kΩ] | H149: 68
C151: Current sense resistor
C152: Input | D152: Current sense threshold value from datasheet | F152: VCS_N | G152: [V] | H152: 0.8
C153: result | D153: Calculated current sense resistor (R8A, R8B) | F153: Rsense | G153: [Ω] | H153: =H152/H74 -> 0.9327934763
B155: Ouput rectifier
C156: Secondary 1 Output rectifier
C157: result | D157: Diode reverse voltage | F157: VRDiode1 | G157: [V] | H157: =H24+(H51/H98) -> 86.79853471
C158: result | D158: Diode RMS current | F158: IS 1RMS | G158: [A] | H158: =H134 -> 2.208952655
C159: Input | D159: Max voltage undershoot at output capacitor | F159: ΔVOut1 | G159: [V] | H159: 0.3
C160: Input | D160: Number of clock periods | F160: ncp1 | H160: 20
C161: result | D161: Output capacitor ripple current | F161: IRipple1 | G161: [A] | H161: =SQRT(H158^2-H25^2) -> 1.987989645
C162: result | D162: Calculated minimum output capacitor | F162: COut1Cal | G162: [uF] | H162: =(H25*H160/(H159*H43))*1000000 -> 642
C163: Input | D163: Select output capacitor value (C152) | F163: COut1 | G163: [uF] | H163: 680
C164: Input | D164: ESR (Zmax) value from datasheet @ 100kHz | F164: RESR1 | G164: [Ω] | H164: 0.032
C165: Input | D165: Number of parallel capacitors | F165: ncCOut1 | H165: 1
C166: result | D166: Zero frequency of output capacitor | F166: fZCOut1 | G166: [Khz] | H166: =1/(2*PI()*H164*H163*10^(-6)*1000) -> 7.314105841
C167: result | D167: First stage ripple voltage | F167: VRipple1 | G167: [V] | H167: =H133*H164/H165 -> 0.1783888977
C168: Input | D168: Select LC filter inductor value (L151) | F168: Lout1 | G168: [uH] | H168: 2.2
C169: result | D169: Calculated LC filter capacitor | F169: CLCCal1 | G169: [uF] | H169: =(H164*H163)^2/H168 -> 215.2261818
C170: Input | D170: Select LC filter capacitor value (C153) | F170: CLC1 | G170: [uF] | H170: 680
C171: result | D171: LC filter frequency | F171: fLC1 | G171: [Khz] | H171: =1/(1000*2*PI()*SQRT((H168*10^-6*H170*10^-6))) -> 4.114853094
C172: result | D172: Second stage ripple voltage | F172: V2ndRipple1 | G172: [mV] | H172: =(H167*(1/(2*PI()*H43*H170*10^-6))/((1/(2*PI()*H43*H170*10^-6))+(2*PI()*H43*H168*10^-6)))*1000 -> 0.3015378024
B174: Vcc diode and capacitor
C175: Vcc diode and capacitor
C176: result | D176: Auxiliary diode reverse voltage (D2) | F176: VRDiodeVCC | G176: [V] | H176: =H95+(H51*H94/H90) -> 79.51532348
C177: Input | D177: Soft-start time from datasheet | F177: tss | G177: [ms] | H177: 12
C178: Input | D178: IVCC,normal2 from datasheet | F178: IVCC_normal2 | G178: [mA] | H178: 3
C179: Input | D179: VCC on threshold | F179: VVCC_ON | G179: [V] | H179: 16
C180: Input | D180: VCC off threshold | F180: VVCC_OFF | G180: [V] | H180: 10
C181: result | D181: Calculated VCC capacitor | F181: CVCCCal | G181: [uF] | H181: =H178*H177/(H179-H180) -> 6
C182: Input | D182: Select Vcc capacitor (C3) | F182: CVCC | G182: [uF] | H182: 22
C183: Input | D183: VCC short threshold from datasheet | F183: VVCC_SCP | G183: [V] | H183: 1.1
C184: Input | D184: IVCC_Charge1 from datasheet | F184: IVCC_Charge1 | G184: [mA] | H184: 0.2
C185: result | D185: Start up time | F185: tStartUp | G185: [ms] | H185: =H183*H182/H184+(H179-H183)*H182/H178 -> 230.2666667
B187: Calculation of losses
C188: Input diode bridge
C189: Input | D189: Diode bridge forward voltage | F189: VFBR | G189: [V] | H189: 1
C190: result | D190: Diode bridge power loss | F190: PDIN | G190: [W] | H190: =H50*H189*2 -> 0.8032128514
C192: Transformer copper
C193: result | D193: Primary winding copper resistance | F193: RPCu | G193: [mΩ] | H193: =H86*0.001*H90*17.2/H120 -> 1068.458025
C194: result | D194: Secondary 1 winding copper resistance | F194: RS1Cu | G194: [mΩ] | H194: =H86*0.001*H92*17.2/H132 -> 25.90058657
C195: result | D195: Primary winding copper loss | F195: PPCu | G195: [mW] | H195: =H76^2*H193 -> 133.6335798
C196: result | D196: Secondary 1 winding copper loss | F196: PS1Cu | G196: [mW] | H196: =H158^2*H194 -> 126.3811826
C197: result | D197: Total transformer copper loss | F197: PCu | G197: [W] | H197: =SUM(H195:H196)/1000 -> 0.2600147624
C199: Output rectifier diode
C200: result | D200: Secondary 1 diode loss | F200: PDiode1 | G200: [W] | H200: =H158*H26 -> 1.325371593
C202: RCD clamper circuit
C203: result | D203: RCD clamper loss | F203: PClamper | G203: [W] | H203: =0.5*H144*H74^2*H43*(H145+H99)/H145 -> 0.9056640971
C205: Current sense resistor
C206: result | D206: Current sense resistor loss | F206: PCS | G206: [W] | H206: =H76^2*H153 -> 0.1166658198
C208: MOSFET
C209: Input | D209: RDSON from datasheet | F209: RDSON @ TA=125°C | G209: [Ω] | H209: 8.69
C210: Input | D210: Co(er) from datasheet | F210: Co(er) | G210: [pF] | H210: 3
C211: Input | D211: External drain to source capacitance | F211: CDS | G211: [pF] | H211: 0
C212: result | D212: Switch on loss at minimum AC input voltage | F212: PSONMinAC | G212: [W] | H212: =0.5*(H210+H211)*10^-12*(H60+H99)^2*H43 -> 0.005705642585
C213: result | D213: Conduction loss at minimum AC input voltage | F213: PcondMinAC | G213: [W] | H213: =H76^2*H209 -> 1.086870781
C214: result | D214: Total MOSFET loss at minimum AC input voltage | F214: PMOSMinAC | G214: [W] | H214: =SUM(H212:H213) -> 1.092576424
C215: result | D215: Switch on loss at maximum AC input voltage | F215: PSONMaxAC | G215: [W] | H215: =0.5*(H210+H211)*10^-12*(H51+H99)^2*H43 -> 0.04840901827
C216: result | D216: Conduction loss at maximum AC input voltage | F216: PcondMaxAC | G216: [W] | H216: =(1/3)*H209*H74^2*H71*H74*H43/H51 -> 0.2180594416
C217: result | D217: Total MOSFET loss at maximum AC input voltage | F217: PMOSMaxAC | G217: [W] | H217: =SUM(H215:H216) -> 0.2664684599
C218: result | D218: Total MOSFET loss (from minimum or maximum AC) | F218: PMOS | G218: [W] | H218: =MAX(H214,H217) -> 1.092576424
C220: Controller
C221: Input | D221: Controller current consumption | F221: IVCC_Normal | G221: [mA] | H221: 0.9
C222: result | D222: Controller loss | F222: PCtrl | G222: [W] | H222: =H95*H221*10^-3 -> 0.01233
C224: Efficiency after Losses
C225: result | D225: Total power loss | F225: PLosses | G225: [W] | H225: =SUM(H190+H197+H200+H203+H206+H218+H222) -> 4.515835547
C226: result | D226: Post calculated efficiency | F226: ηPost | G226: % | H226: =H37/(H37+H225) -> 0.7901157249
B228: CoolSET™/MOSFET temperature
C229: CoolSET™/MOSFET temperature
C230: Input | D230: Enter thermal resistance junction-ambient (include copper pour) | F230: RthJA_As | G230: [°K/W] | H230: 65
C231: result | D231: Temperature rise | F231: ΔT | G231: [°K] | H231: =H230*H218 -> 71.01746754
C232: result | D232: Junction temperature at Tamax | F232: Tjmax | G232: °C | H232: =H45+H231 -> 121.0174675 | I232: =IF(H232>125, "Caution! Junction temperature too high. Make sure to add a copper pour (as heatsink) on DRAIN pin.","") -> 
... 114 more rows

Sheet Dual Output
B1: Calculation tool for fixed frequency flyback converter using Gen5 CoolSET™ (Version 1.1)
B3: Project:
B4: Application:
B5: CoolSET: | D5: ICE5AR4780BZS
B6: Date:
B7: Revision:
B9: Notes:
B10: Enter design variables in yellow coloured cells
B11: Read design results in green coloured cells
B12: Equation numbers are according to the Design Guide
B13: Select component values based on standard values available
B14: Voltage/current rating does not include design margin, voltage spikes and transient currents.
B15: In the "Output regulation", only fill-in either isolated or non-isolated whichever is applicable.
D16: Description | E16: Eq. # | F16: Parameter | G16: Unit | H16: Value
B17: Input, output, CoolSET™ Specs
C18: Line input
C19: Input | D19: Minimum AC input voltage | F19: VACMin | G19: [V] | H19: 85
C20: Input | D20: Maximum AC input voltage | F20: VACMax | G20: [V] | H20: 330
C21: Input | D21: Line frequency | F21: fAC | G21: [Hz] | H21: 60
C22: Input | D22: Bus capacitor DC ripple voltage | F22: VDCRipple | G22: [V] | H22: 27
C24: Output 1 Specs
C25: Input | D25: Output voltage 1 | F25: VOut1 | G25: [V] | H25: 15
C26: Input | D26: Output current 1 | F26: IOut1 | G26: [A] | H26: 0.83
C27: Input | D27: Forward voltage of output diode 1 | F27: VFOut1 | G27: [V] | H27: 0.6
C28: Input | D28: Output ripple voltage 1 | F28: VOutRipple1 | G28: [V] | H28: 0.2
C29: result | D29: Output power 1 | E29: Eq 001 | F29: POut1 | G29: [W] | H29: =H26*H25 -> 12.45
C30: result | D30: Output load weight 1 | E30: Eq 004 | F30: KL1 | H30: =H25*H26/H46 -> 0.8615916955
C32: Output 2 Specs
C33: Input | D33: Output voltage 2 | F33: VOut2 | G33: [V] | H33: 5
C34: Input | D34: Output current 2 | F34: IOut2 | G34: [A] | H34: 0.4
C35: Input | D35: Forward voltage of output diode 2 | F35: VFOut2 | G35: [V] | H35: 0.2
C36: Input | D36: Output ripple voltage 2 | F36: VOutRipple2 | G36: [V] | H36: 0.2
C37: result | D37: Output power 2 | E37: Eq 002 | F37: POut2 | G37: [W] | H37: =H34*H33 -> 2
C38: result | D38: Output load weight 2 | E38: Eq 005 | F38: KL2 | H38: =H33*H34/H46 -> 0.1384083045
C40: Auxiliary
C41: Input | D41: Vcc Voltage | F41: VVcc | G41: [V] | H41: 14
C42: Input | D42: Forward voltage of Vcc diode(D2) | F42: VF Vcc | G42: [V] | H42: 0.6
C44: Power
C45: Input | D45: Efficency | F45: η | H45: 0.83
C46: result | D46: Nominal output power | E46: Eq 003 | F46: POutNom | G46: [W] | H46: =(H25*H26)+(H33*H34) -> 14.45
C47: Input | D47: Maximum output power for overload protection | F47: POutMax | G47: [W] | H47: 17 | I47: =IF(H47<H46,"Caution! PoutMax should be higher than PoutNom","") -> 
C48: result | D48: Maximum input power for overload protection | E48: Eq 006 | F48: PInMax | G48: [W] | H48: =H47/H45 -> 20.48192771
C49: Input | D49: Minimum output power | F49: POutMin | G49: [W] | H49: 2
C51: Controller/CoolSET™
D52: Controller/ CoolSETTM | H52: =D5 -> ICE5AR4780BZS
C53: Input | D53: Switching frequency | F53: fS | G53: [Hz] | H53: 100000
C54: Input | D54: Targeted Max. Drain Source voltage | F54: VDSMax | G54: [V] | H54: 700
C55: Input | D55: Max. ambient temperature | F55: Tamax | G55: [°C] | H55: 50
B57: Diode bridge and input capacitor
C58: Diode bridge
C59: Input | D59: Power factor | F59: cosϕ | H59: 0.6
C60: result | D60: Maximum AC input current | E60: Eq 007 | F60: IACRMS | G60: [A] | H60: =H48/H19/H59 -> 0.4016064257
C61: result | D61: Peak voltage at VACMax | E61: Eq 008 | F61: VDCMaxPk | G61: [V] | H61: =H$20*SQRT(2) -> 466.6904756
C63: Input capacitor
C64: result | D64: Peak voltage at VACMin | E64: Eq 009 | F64: VDCMinPk | G64: [V] | H64: =H19*SQRT(2) -> 120.2081528
C65: result | D65: Selected minimum DC input voltage | E65: Eq 010 | F65: VDCMinSet | G65: [V] | H65: =(H64-H22) -> 93.2081528
C66: result | D66: Discharging time at each half-line cycle | E66: Eq 011 | F66: TD | G66: [ms] | H66: =(1000/(4*H21))*(1+(ASIN((H64-H22)/H64)*180/PI()/90)) -> 6.520387471
C67: result | D67: Required energy at discharging time of input capacitor | E67: Eq 012 | F67: WIn | G67: [Ws] | H67: =H48*H66/1000 -> 0.1335501048
C68: result | D68: Calculated input capacitor | E68: Eq 013 | F68: CINCal | G68: [uF] | H68: =(2*H67/(H64^2-(H64-H22)^2))*1000000 -> 46.35353578
C69: Input | D69: Select input capacitor (C1) | F69: Cin | G69: [uF] | H69: 47
C70: result | D70: Calculated minimum DC input voltage | E70: Eq 015 | F70: VDCMin | G70: [V] | H70: =SQRT(H64^2-2*H67/(H69*0.000001)) -> 93.63234919
B72: Transformer design
C73: Drain voltage and current waveform
C77: Primary inductance and winding currents
C78: Input | D78: Reflection voltage | F78: VRSET | G78: [V] | H78: 97.5
C79: result | D79: Maximum duty cycle | E79: Eq 016 | F79: DMax | H79: =H78/(H78+H70) -> 0.5101177295
C80: Input | D80: Select current ripple factor | F80: KRF | H80: 1
C81: result | D81: Primary inductance | E81: Eq 017 | F81: LP | G81: [H] | H81: =(H70*H79)^2/(2*H48*H53*H80) -> 0.0005569187643
C82: result | D82: Primary turn-on average current | E82: Eq 018 | F82: IAV | G82: [A] | H82: =H48/(H70*H79) -> 0.4288194656
C83: result | D83: Primary peak-to-peak current | E83: Eq 019 | F83: ΔI | G83: [A] | H83: =H70*H79/(H81*H53) -> 0.8576389312
C84: result | D84: Primary peak current | E84: Eq 020 | F84: IPMax | G84: [A] | H84: =H82+(H83/2) -> 0.8576389312
C85: result | D85: Primary valley current | E85: Eq 021 | F85: IValley | G85: [A] | H85: =H84-H83 -> 0
C86: result | D86: Primary RMS current | E86: Eq 022 | F86: IPRMS | G86: [A] | H86: =SQRT((3*H82^2+(H83/2)^2)*H79/3) -> 0.3536544023
C88: Select core type
C89: Input | D89: Select core type | H89: 1 | K89: 1 | L89: 2 | M89: 3 | N89: 4 | O89: 5 | P89: 6 | Q89: 7 | R89: 8 | S89: 9 | T89: 10
C90: result | D90: Core Type | H90: =IF($H$89=1,K90,IF($H$89=2,L90,IF($H$89=3,M90,IF($H$89=4,N90,IF($H$89=5,O90,IF($H$89=6,P90,IF($H$89=7,Q90,IF($H$89=8,R90,IF($H$89=9,S90,IF($H$89>=10,T90)))))))))) -> EE20/10/6 | J90: Core Type | K90: EE20/10/6 | L90: E25/13/7 | M90: E30/15/7 | N90: E32/16/9 | O90: E36/18/11 | P90: E42/21/15 | Q90: ETD29/16/10 | R90: ER28/14 | S90: ER28/17
C91: result | D91: Core Material | H91: TP4A(TDG) | J91: Core Material | K91: TP4A(TDG) | L91: N87 | M91: TP4A(TDG) | N91: N87 | O91: N87 | P91: N87 | Q91: N87 | R91: TP4A(TDG) | S91: TP4A(TDG)
C92: result | D92: Maximum flux density | F92: BMax | G92: [T] | H92: 0.2 | J92: Bmax | K92: 0.2 | L92: 0.2 | M92: 0.25 | N92: 0.2 | O92: 0.2 | P92: 0.2 | Q92: 0.2 | R92: 0.2 | S92: 0.2
C93: result | D93: Cross sectional area | F93: Ae | G93: [mm²] | H93: 32 | J93: Ae | K93: 32 | L93: 52 | M93: 59 | N93: 83 | O93: 120 | P93: 178 | Q93: 76 | R93: 82.1 | S93: 81.4
C94: result | D94: Bobbin width | F94: BW | G94: [mm] | H94: 11 | J94: BW | K94: 11 | L94: 15.6 | M94: 17.3 | N94: 20.1 | O94: 21.5 | P94: 26.3 | Q94: 21 | R94: 16 | S94: 21.69
C95: result | D95: Winding cross section | F95: AN | G95: [mm2] | H95: 34 | J95: AN | K95: 34 | L95: 61 | M95: 90 | N95: 108.5 | O95: 122.5 | P95: 177 | Q95: 97 | R95: 68.8 | S95: 95.21
C96: result | D96: Average length of turn | F96: lN | G96: [mm] | H96: 41.2 | J96: lN | K96: 41.2 | L96: 50 | M96: 56 | N96: 64.4 | O96: 76.4 | P96: 87 | Q96: 52.8 | R96: 50 | S96: 48.9
C98: Winding calculation
C99: result | D99: Calculated minimum number of primary turns | E99: Eq 023 | F99: NPCal | G99: turns | H99: =H84*H81*1000000/(H92*H93) -> 74.63050215
C100: Input | D100: Select number of primary turns | F100: NP | G100: turns | H100: 78
C101: result | D101: Calculated number of secondary 1 turns | E101: Eq 024 | F101: NS1Cal | G101: turns | H101: =H$100*(H$25+H$27)/H$78 -> 12.48
C102: Input | D102: Select number of secondary 1 turns | F102: NS1 | G102: turns | H102: 12
C103: result | D103: Calculated number of secondary 2 turns | E103: Eq 025 | F103: NS2Cal | G103: turns | H103: =H$100*(H$33+H$35)/H$78 -> 4.16
C104: Input | D104: Select number of secondary 2 turns | F104: NS2 | G104: turns | H104: 4
C105: result | D105: Calculated number of auxiliary turns | E105: Eq 026 | F105: NVccCal | G105: turns | H105: =(H$41+H$42)*H100/(H112) -> 11.23076923
C106: Input | D106: Select number of auxiliary turns | F106: NVcc | G106: turns | H106: 11
C107: result | D107: Calculated VCC voltage | E107: Eq 027 | F107: VVccCal | G107: [V] | H107: =((H25+H27)*H106/H102)-H42 -> 13.7
C109: Post calculation
C110: result | D110: Primary to secondary 1 turns ratio | E110: Eq 028 | F110: NPS1 | H110: =H100/H102 -> 6.5
C111: result | D111: Primary to secondary 2 turns ratio | E111: Eq 029 | F111: NPS2 | H111: =H100/H104 -> 19.5
C112: result | D112: Post calculated reflected voltage | E112: Eq 030 | F112: VRPost | G112: [V] | H112: =(H25+H27)*H100/H102 -> 101.4
C113: result | D113: Post calculated maximum duty cycle | E113: Eq 031 | F113: DMaxPost | H113: =H112/(H112+H70) -> 0.5199137498
C114: result | D114: Duty cycle prime | E114: Eq 032 | F114: DMax' | H114: =H81*(H84-H85)*H53/H112 -> 0.4710406447
C115: result | D115: Actual flux density | E115: Eq 033 | F115: BMaxAct | G115: [T] | H115: =H81*H84*1000000/(H100*H$93) -> 0.1913602619 | I115: =IF(H115>H92,"Caution! Flux density too large, increase primary turns (cell H96)","") -> 
C116: result | D116: Maximum DC input voltage for CCM operation | E116: Eq 034 | F116: VDCmaxCCM | G116: [V] | H116: =((1/SQRT(2*H48*H81*H53))-(1/H112))^-1 -> 90.29714835
C118: Transformer winding design
C119: Input | D119: Margin according to safety standard | F119: M | G119: [mm] | H119: 0
C120: Input | D120: Copper space factor | F120: fCu | H120: 0.4
C121: result | D121: Effective bobbin window | E121: Eq 035 | F121: BWE | G121: [mm] | H121: =H94-(2*H119) -> 11
C122: result | D122: Effective winding cross section | E122: Eq 036 | F122: ANe | G122: [mm²] | H122: =H95*H121/H94 -> 34
C123: Input | D123: Primary winding area factor | F123: AFNP | H123: 0.5
C124: Input | D124: Secondary 1 winding area factor | F124: AFNS1 | H124: 0.3
C125: Input | D125: Secondary 2 winding area factor | F125: AFNS2 | H125: 0.15
C126: Input | D126: Auxiliary winding area factor | F126: AFNVcc | H126: 0.05 | I126: =IF(H123+H124+H125+H126>1,"Caution! Total winding factor should be ≤1", "") -> 
C128: Primary winding
C129: result | D129: Calculated wire copper cross sectional area | E129: Eq 037 | F129: APCal | G129: [mm²] | H129: =H123*H120*H122/H100 -> 0.08717948718
C130: result | D130: Calculated maximum wire size | E130: Eq 038 | F130: AWGPCal | H130: =9.97*(1.8277-(2*LOG(2*SQRT(H129/PI())))) -> 27.74028445
C131: Input | D131: Select wire size | F131: AWGP | H131: 30
C132: Input | D132: Select number of parallel wire | F132: nwP | H132: 1
C133: result | D133: Wire copper diameter | E133: Eq 039 | F133: dP | G133: [mm] | H133: =POWER(10,((1.8277/2)-(H131/2/9.97))) -> 0.256647158
C134: result | D134: Wire copper cross sectional area | E134: Eq 040 | F134: AP | G134: [mm2] | H134: =(POWER(10,((1.8277/2)-(H131/2/9.97)))/2)^2*PI()*H132 -> 0.05173242063 | I134: =IF(H134>H129,"Caution! Cross sectional area too large, reduce wire size (cell C126)","") -> 
C135: result | D135: Wire current density | E135: Eq 041 | F135: SP | G135: [A/mm2] | H135: =H86/H134 -> 6.836223745 | I135: =IF(H135>8,"Caution! Current density too high, increase wire size (cell H126)","") -> 
C136: Input | D136: Insulation thickness | F136: INSP | G136: [mm] | H136: 0.01
C137: result | D137: Turns per layer | E137: Eq 042 | F137: NLP | G137: turns/layer | H137: =MIN(ROUNDDOWN(H121/((H133+(2*H136))*H132),0),H100) -> 39
C138: result | D138: Number of layers | E138: Eq 043 | F138: LnP | G138: layers | H138: =ROUNDUP(H100/H137,0) -> 2
C140: Secondary 1 winding
C141: result | D141: Calculated wire copper cross sectional area | E141: Eq 044 | F141: ANS1Cal | G141: [mm²] | H141: =H124*H120*H122/H102 -> 0.34
C142: result | D142: Calculated maximum wire size | E142: Eq 045 | F142: AWGS1Cal | H142: =9.97*(1.8277-(2*LOG(2*SQRT(H141/PI())))) -> 21.84737031
C143: Input | D143: Select wire size | F143: AWGS1 | H143: 26
C144: Input | D144: Select number of parallel wire | F144: nwS1 | H144: 2
C145: result | D145: Wire copper diameter | E145: Eq 046 | F145: dS1 | G145: [mm] | H145: =POWER(10,((1.8277/2)-(H143/2/9.97))) -> 0.4073223726
C146: result | D146: Wire copper cross sectional area | E146: Eq 047 | F146: AS1 | G146: [mm2] | H146: =PI()*H145^2*H144/4 -> 0.2606131987 | I146: =IF(H146>H141,"Caution! Cross sectional area too large, reduce wire size (cell C138)","") -> 
C147: result | D147: Peak current | E147: Eq 048 | F147: IS1Max | G147: [A] | H147: =H84*H110*H30 -> 4.803074775
C148: result | D148: RMS current | E148: Eq 049 | F148: IS1RMS | G148: [A] | H148: =H86*H30*SQRT((1-H113)/H113)*H110 -> 1.903215263
C149: result | D149: Wire current density | E149: Eq 050 | F149: SS1 | G149: [A/mm2] | H149: =H148/H146 -> 7.302835285 | I149: =IF(H149>8,"Caution! Current density too high, increase wire size (cell H138)","") -> 
C150: Input | D150: Insulation thickness | F150: INSS1 | G150: [mm] | H150: 0.01
C151: result | D151: Turns per layer | E151: Eq 051 | F151: NLS1 | G151: turns/layer | H151: =MIN(ROUNDDOWN(H121/((H145+(2*H150))*H144),0),H102) -> 12
C152: result | D152: Number of layers | E152: Eq 052 | F152: LnS1 | G152: layers | H152: =ROUNDUP(H102/H151,0) -> 1
C154: Secondary 2 winding
C155: result | D155: Calculated wire copper cross sectional area | E155: Eq 053 | F155: ANS2Cal | G155: [mm²] | H155: =H125*H120*H122/H104 -> 0.51
C156: result | D156: Calculated maximum wire size | E156: Eq 054 | F156: AWGS2Cal | H156: =9.97*(1.8277-(2*LOG(2*SQRT(H155/PI())))) -> 20.09174046
C157: Input | D157: Select wire size | F157: AWGS2 | H157: 26
C158: Input | D158: Select number of parallel wire | F158: nwS2 | H158: 1
C159: result | D159: Wire copper diameter | E159: Eq 055 | F159: dS2 | G159: [mm] | H159: =POWER(10,((1.8277/2)-(H157/2/9.97))) -> 0.4073223726
C160: result | D160: Wire copper cross sectional area | E160: Eq 056 | F160: AS2 | G160: [mm2] | H160: =PI()*H159^2*H158/4 -> 0.1303065993 | I160: =IF(H160>H155,"Caution! Cross sectional area too large, reduce wire size (cell C152)","") -> 
C161: result | D161: Peak current | E161: Eq 057 | F161: IS2Max | G161: [A] | H161: =H84*H111*H38 -> 2.314734832
C162: result | D162: RMS current | E162: Eq 058 | F162: IS2RMS | G162: [A] | H162: =H86*H38*SQRT((1-H113)/H113)*H111 -> 0.917212175
C163: result | D163: Wire current density | E163: Eq 059 | F163: SS2 | G163: [A/mm2] | H163: =H162/H160 -> 7.038877384 | I163: =IF(H163>8,"Caution! Current density too high, increase wire size (cell H152)","") -> 
C164: Input | D164: Insulation thickness | F164: INSS2 | G164: [mm] | H164: 0.01
C165: result | D165: Turns per layer | E165: Eq 060 | F165: NLS2 | G165: turns/layer | H165: =ROUNDDOWN(H121/((H159+(2*H164))*H158),0) -> 25
C166: result | D166: Number of layers | E166: Eq 061 | F166: LnS2 | G166: layers | H166: =ROUNDUP(H104/H165,0) -> 1
B169: RCD clamper and current sense resistor
C170: RCD clamper circuit
C171: Input | D171: Leakage inductance percentage | F171: LLK% | G171: [%] | H171: 2.5
C172: result | D172: Leakage inductance | E172: Eq 062 | F172: LLK | G172: [H] | H172: =H171*H81/100 -> 1.392296911e-05
C173: result | D173: Clamping voltage | E173: Eq 063 | F173: VClamp | G173: [V] | H173: =H54-H61-H112 -> 131.9095244
C174: result | D174: Calculated clamping capacitor | E174: Eq 064 | F174: CClampCal | G174: [nF] | H174: =H172*H84^2/((H173*(H112+H173)))*1000000000 -> 0.3327608388
C175: Input | D175: Select clamping capacitor value (C2) | F175: Cclamp | G175: [nF] | H175: 1
C176: result | D176: Calculated clamping resistor | E176: Eq 065 | F176: RclampCal | G176: [kΩ] | H176: =((H112+H173)^2-H112^2)/(H172*H84^2*H53*0.5*1000) -> 86.22503664
C177: Input | D177: Select clamping resistor value (R4) | F177: Rclamp | G177: [kΩ] | H177: 68
C179: Current sense resistor
C180: Input | D180: Current sense threshold value from datasheet | F180: VCS_N | G180: [V] | H180: 0.8
C181: result | D181: Calculated current sense resistor (R8A, R8B) | E181: Eq 066 | F181: Rsense | G181: [Ω] | H181: =H180/H84 -> 0.9327934763
B183: Ouput rectifier
C184: Secondary 1 Output rectifier
C185: result | D185: Diode reverse voltage | E185: Eq 067 | F185: VRDiode1 | G185: [V] | H185: =H25+(H61/H110) -> 86.79853471
C186: result | D186: Diode RMS current | F186: IS 1RMS | G186: [A] | H186: =H148 -> 1.903215263
C187: Input | D187: Max voltage undershoot at output capacitor | F187: ΔVOut1 | G187: [V] | H187: 0.3
C188: Input | D188: Number of clock periods | F188: ncp1 | H188: 20
C189: result | D189: Output capacitor ripple current | E189: Eq 068 | F189: IRipple1 | G189: [A] | H189: =SQRT(H186^2-H26^2) -> 1.712696219
C190: result | D190: Calculated minimum output capacitor | E190: Eq 069 | F190: COut1Cal | G190: [uF] | H190: =(H26*H188/(H187*H53))*1000000 -> 553.3333333
C191: Input | D191: Select output capacitor value (C152) | F191: COut1 | G191: [uF] | H191: 680
C192: Input | D192: ESR (Zmax) value from datasheet @ 100kHz | F192: RESR1 | G192: [Ω] | H192: 0.032
C193: Input | D193: Number of parallel capacitors | F193: ncCOut1 | H193: 1
C194: result | D194: Zero frequency of output capacitor | E194: Eq 070 | F194: fZCOut1 | G194: [Khz] | H194: =1/(2*PI()*H192*H191*10^(-6)*1000) -> 7.314105841
C195: result | D195: First stage ripple voltage | E195: Eq 071 | F195: VRipple1 | G195: [V] | H195: =H147*H192/H193 -> 0.1536983928
C196: Input | D196: Select LC filter inductor value (L151) | F196: Lout1 | G196: [uH] | H196: 2.2
C197: result | D197: Calculated LC filter capacitor | E197: Eq 072 | F197: CLCCal1 | G197: [uF] | H197: =(H192*H191)^2/H196 -> 215.2261818
C198: Input | D198: Select LC filter capacitor value (C153) | F198: CLC1 | G198: [uF] | H198: 680
C199: result | D199: LC filter frequency | E199: Eq 073 | F199: fLC1 | G199: [Khz] | H199: =1/(1000*2*PI()*SQRT((H196*10^-6*H198*10^-6))) -> 4.114853094
C200: result | D200: Second stage ripple voltage | E200: Eq 074 | F200: V2ndRipple1 | G200: [mV] | H200: =(H195*(1/(2*PI()*H53*H198*10^-6))/((1/(2*PI()*H53*H198*10^-6))+(2*PI()*H53*H196*10^-6)))*1000 -> 0.2598024664
C202: Secondary 2 Output rectifier
C203: result | D203: Diode reverse voltage | E203: Eq 075 | F203: VRDiode2 | G203: [V] | H203: =H33+(H61/H111) -> 28.9328449
C204: result | D204: Diode RMS current | F204: IS2RMS | G204: [A] | H204: =H162 -> 0.917212175
C205: Input | D205: Max voltage undershoot at output capacitor | F205: ΔVOut1 | G205: [V] | H205: 0.15
C206: Input | D206: Number of clock periods | F206: ncp2 | H206: 20
C207: result | D207: Output capacitor ripple current | E207: Eq 076 | F207: IRipple2 | G207: [A] | H207: =SQRT(H204^2-H34^2) -> 0.825395768
C208: result | D208: Calculated minimum output capacitor | E208: Eq 077 | F208: COut2Cal | G208: [uF] | H208: =(H34*H206/(H205*H53))*1000000 -> 533.3333333
C209: Input | D209: Select output capacitor value (C152) | F209: COut2 | G209: [uF] | H209: 680
C210: Input | D210: ESR (Zmax) value from datasheet @ 100kHz | F210: RESR2 | G210: [Ω] | H210: 0.032
C211: Input | D211: Number of parallel capacitors | F211: ncCOut2 | H211: 1
C212: result | D212: Zero frequency of output capacitor | E212: Eq 078 | F212: fZCOut2 | G212: [Khz] | H212: =1/(2*PI()*H210*H209*10^(-6)*1000) -> 7.314105841
C213: result | D213: First stage ripple voltage | E213: Eq 079 | F213: VRipple2 | G213: [V] | H213: =H161*H210/H211 -> 0.07407151461
C214: Input | D214: Select LC filter inductor value (L151) | F214: Lout | G214: [uH] | H214: 2.2
C215: result | D215: Calculated LC filter capacitor | E215: Eq 080 | F215: CLCCal2 | G215: [uF] | H215: =(H210*H209)^2/H214 -> 215.2261818
C216: Input | D216: Select LC filter capacitor value (C153) | F216: CLC2 | G216: [uF] | H216: 330
C217: result | D217: LC filter frequency | E217: Eq 081 | F217: fLC2 | G217: [Khz] | H217: =1/(1000*2*PI()*SQRT((H214*10^-6*H216*10^-6))) -> 5.906793949
C218: result | D218: Second stage ripple voltage | E218: Eq 082 | F218: V2ndRipple2 | G218: [mV] | H218: =(H213*(1/(2*PI()*H53*H216*10^-6))/((1/(2*PI()*H53*H216*10^-6))+(2*PI()*H53*H214*10^-6)))*1000 -> 0.2575385477
B220: Vcc diode and capacitor
C221: Vcc diode and capacitor
C222: result | D222: Auxiliary diode reverse voltage (D2) | E222: Eq 083 | F222: VRDiodeVCC | G222: [V] | H222: =H107+(H61*H106/H100) -> 79.51532348
C223: Input | D223: Soft-start time from datasheet | F223: tss | G223: [ms] | H223: 12
C224: Input | D224: IVCC,normal2 from datasheet | F224: IVCC_normal2 | G224: [mA] | H224: 3
C225: Input | D225: VCC on threshold | F225: VVCC_ON | G225: [V] | H225: 16
C226: Input | D226: VCC off threshold | F226: VVCC_OFF | G226: [V] | H226: 10
... 178 more rows

Sheet Design example (dual non-iso)
B1: Design example for dual output non-isolated design using integrated amplifier (VERR pin)
B3: Attention: Voltage/current rating (in RED font) does not include design margin, voltage spikes and transient currents.
B7: No. | C7: Designator | D7: Value/ Part Name | E7: Unit | F7: Voltage | G7: [ARMS] | H7: Watt
B8: 1 | C8: F1 | F8: 300Vac | G8: ='Dual Output'!H60 -> 0.4016064257
B9: 2 | C9: Z1 | D9: ERZE07A511
B10: 3 | C10: BR1 | F10: 600V | G10: ='Dual Output'!H60 -> 0.4016064257 | H10: ='Dual Output'!H236 -> 0.8032128514
B11: 4 | C11: CX1 | D11: 0.15 | E11: uF | F11: 305Vac
B12: 5 | C12: CX2 | D12: nc
B13: 6 | C13: C1 | D13: ='Dual Output'!H69 -> 47 | E13: uF | F13: ='Dual Output'!H61 -> 466.6904756
B14: 7 | C14: C2 | D14: ='Dual Output'!H175 -> 1 | E14: nF | F14: 630V
B15: 8 | C15: C3 | D15: ='Dual Output'!H228 -> 22 | E15: uF | F15: 50V
B16: 9 | C16: C4 | D16: 0.1 | E16: uF | F16: 50V
B17: 10 | C17: C5 | D17: 1000 | E17: pF | F17: 50V
B18: 11 | C18: C6 | D18: 4700 | E18: pF | F18: 50V
B19: 12 | C19: C7 | D19: 15 | E19: pF | F19: 50V
B20: 13 | C20: C101 | D20: nc
B21: 14 | C21: C102 | D21: ='Dual Output'!H209 -> 680 | E21: uF | F21: 10V
B22: 15 | C22: C103 | D22: ='Dual Output'!H216 -> 330 | E22: uF | F22: 10V
B23: 16 | C23: C104 | D23: 4700 | E23: pF | F23: 50V
B24: 17 | C24: C151 | D24: nc
B25: 18 | C25: C152 | D25: ='Dual Output'!H191 -> 680 | E25: uF | F25: 25V
B26: 19 | C26: C153 | D26: ='Dual Output'!H198 -> 680 | E26: uF | F26: 25V
B27: 20 | C27: C154 | D27: 1000 | E27: pF | F27: 50V
B28: 21 | C28: ZD1 | F28: 22V | H28: 500mW
B29: 22 | C29: ZD101 | D29: nc
B30: 23 | C30: ZD151 | D30: nc
B31: 24 | C31: D1 | F31: 800V | G31: 1A
B32: 25 | C32: D2 | F32: ='Dual Output'!H222 -> 79.51532348 | G32: 0.2A
B33: 26 | C33: D101 | F33: ='Dual Output'!H203 -> 28.9328449 | G33: ='Dual Output'!H204 -> 0.917212175
B34: 27 | C34: D151 | F34: ='Dual Output'!H185 -> 86.79853471 | G34: ='Dual Output'!H186 -> 1.903215263
B35: 28 | C35: IC1 | D35: ICE5AR4780BZS
B36: 29 | C36: L1 | D36: 39 | E36: mH | G36: ='Dual Output'!H60 -> 0.4016064257
B37: 30 | C37: L101 | D37: ='Dual Output'!H196 -> 2.2 | E37: uH | G37: ='Dual Output'!H26 -> 0.83
B38: 31 | C38: L151 | D38: ='Dual Output'!H214 -> 2.2 | E38: uH | G38: ='Dual Output'!H34 -> 0.4
B39: 32 | C39: R1A, R1B | D39: 3 | E39: MΩ | F39: 250V
B40: 33 | C40: R2A, R2B, R2C | D40: 15 | E40: MΩ | F40: 200V
B41: 34 | C41: R4 | D41: ='Dual Output'!H177 -> 68 | E41: kΩ | F41: 500V | H41: ='Dual Output'!H252 -> 0.9056640971
B42: 35 | C42: R5 | D42: 4.7 | E42: Ω
B43: 36 | C43: R6 | D43: 0 | E43: Ω
B44: 37 | C44: R8A, R8B | D44: ='Dual Output'!H410*2 -> 1.865586953 | E44: Ω | H44: ='Dual Output'!H255/2 -> 0.0583329099
B45: 38 | C45: R9 | D45: 260 | E45: kΩ
B46: 39 | C46: R10 | D46: nc
B47: 40 | C47: R11 | D47: ='Dual Output'!H425 -> 39 | E47: kΩ
B48: 41 | C48: R101 | D48: nc
B49: 42 | C49: R102 | D49: 11 | E49: kΩ
B50: 43 | C50: R103 | D50: ='Dual Output'!H427 -> 100 | E50: kΩ
B51: 44 | C51: R104 | D51: 4.7 | E51: kΩ
B52: 45 | C52: R151 | D52: nc
B53: 46 | C53: R152 | D53: 15 | E53: kΩ
B54: 47 | C54: R153 | D54: ='Dual Output'!H426 -> 910 | E54: kΩ
B55: 48 | C55: R154 | D55: 33 | E55: kΩ
B56: 49 | C56: T1 | D56: ='Dual Output'!H382 -> 556.9187643 | E56: uH
B57: 50 | C57: CN1 | D57: connector
B58: 51 | C58: CN2,CN3 | D58: connector
B59: 52 | C59: JP1-JP3 | D59: Jumper
B60: 53 | C60: PCB | D60: 110mmX66mm (LXW), single layer, 2Oz., FR-4

Sheet Design example (dual iso)
B1: Design example for dual output isolated design using optocoupler and TL431
B3: Attention: Voltage/current rating (in RED font) does not include design margin, voltage spikes and transient currents.
B7: No. | C7: Designator | D7: Value/ Part Name | E7: Unit | F7: Voltage | G7: [ARMS] | H7: Watt
B8: 1 | C8: F1 | F8: 300Vac | G8: ='Dual Output'!H60 -> 0.4016064257
B9: 2 | C9: Z1 | D9: ERZE07A511
B10: 3 | C10: BR1 | F10: 600V | G10: ='Dual Output'!H60 -> 0.4016064257 | H10: ='Dual Output'!H236 -> 0.8032128514
B11: 4 | C11: CX1 | D11: 0.15 | E11: uF | F11: 305Vac
B12: 5 | C12: CX2 | D12: nc
B13: 6 | C13: C1 | D13: ='Dual Output'!H69 -> 47 | E13: uF | F13: ='Dual Output'!H61 -> 466.6904756
B14: 7 | C14: C2 | D14: ='Dual Output'!H175 -> 1 | E14: nF | F14: 630V
B15: 8 | C15: C3 | D15: ='Dual Output'!H228 -> 22 | E15: uF | F15: 50V
B16: 9 | C16: C4 | D16: 0.1 | E16: uF | F16: 50V
B17: 10 | C17: C5 | D17: 1000 | E17: pF | F17: 50V
B18: 11 | C18: C6 | D18: 1000 | E18: pF | F18: 50V
B19: 12 | C19: C25 | D19: ='Dual Output'!H422 -> 820 | E19: nF | F19: 50V
B20: 13 | C20: C26 | D20: ='Dual Output'!H421 -> 3.3 | E20: nF | F20: 50V
B21: 14 | C21: C101 | D21: nc
B22: 15 | C22: C102 | D22: ='Dual Output'!H209 -> 680 | E22: uF | F22: 10V
B23: 16 | C23: C103 | D23: ='Dual Output'!H216 -> 330 | E23: uF | F23: 10V
B24: 17 | C24: C151 | D24: nc
B25: 18 | C25: C152 | D25: ='Dual Output'!H191 -> 680 | E25: uF | F25: 25V
B26: 19 | C26: C153 | D26: ='Dual Output'!H198 -> 680 | E26: uF | F26: 25V
B27: 20 | C27: ZD1 | F27: 22V | H27: 500mW
B28: 21 | C28: ZD101 | D28: nc
B29: 22 | C29: ZD151 | D29: nc
B30: 23 | C30: D1 | F30: 800V | G30: 1A
B31: 24 | C31: D2 | F31: ='Dual Output'!H222 -> 79.51532348 | G31: 0.2A
B32: 25 | C32: D101 | F32: ='Dual Output'!H203 -> 28.9328449 | G32: ='Dual Output'!H204 -> 0.917212175
B33: 26 | C33: D151 | F33: ='Dual Output'!H185 -> 86.79853471 | G33: ='Dual Output'!H186 -> 1.903215263
B34: 27 | C34: IC1 | D34: ICE5AR4780BZS
B35: 28 | C35: IC2 | D35: SFH617A-3
B36: 29 | C36: IC3 | D36: TL431
B37: 30 | C37: L1 | D37: 39 | E37: mH | G37: ='Dual Output'!H60 -> 0.4016064257
B38: 31 | C38: L101 | D38: ='Dual Output'!H196 -> 2.2 | E38: uH | G38: ='Dual Output'!H26 -> 0.83
B39: 32 | C39: L151 | D39: ='Dual Output'!H214 -> 2.2 | E39: uH | G39: ='Dual Output'!H34 -> 0.4
B40: 33 | C40: R1A, R1B | D40: 3 | E40: MΩ | F40: 250V
B41: 34 | C41: R2A, R2B, R2C | D41: 15 | E41: MΩ | F41: 200V
B42: 35 | C42: R4 | D42: ='Dual Output'!H177 -> 68 | E42: kΩ | F42: 500V | H42: ='Dual Output'!H252 -> 0.9056640971
B43: 36 | C43: R5 | D43: 4.7 | E43: Ω
B44: 37 | C44: R6 | D44: 0 | E44: Ω
B45: 38 | C45: R8A, R8B | D45: ='Dual Output'!H410*2 -> 1.865586953 | E45: Ω | H45: ='Dual Output'!H255/2 -> 0.0583329099
B46: 39 | C46: R22 | D46: ='Dual Output'!H418 -> 0.82 | E46: kΩ
B47: 40 | C47: R23 | D47: ='Dual Output'!H419 -> 1.2 | E47: kΩ
B48: 41 | C48: R24 | D48: ='Dual Output'!H420 -> 16 | E48: kΩ
B49: 42 | C49: R25 | D49: ='Dual Output'!H416 -> 56 | E49: kΩ
B50: 43 | C50: R25A | D50: ='Dual Output'!H417 -> 93 | E50: kΩ
B51: 44 | C51: R26 | D51: ='Dual Output'!H415 -> 10 | E51: kΩ
B52: 45 | C52: R101 | D52: nc
B53: 46 | C53: R102 | D53: 11 | E53: kΩ
B54: 47 | C54: R151 | D54: nc
B55: 48 | C55: R152 | D55: 15 | E55: kΩ
B56: 49 | C56: T1 | D56: ='Dual Output'!H382 -> 556.9187643 | E56: uH
B57: 50 | C57: CN1 | D57: connector
B58: 51 | C58: CN2,CN3 | D58: connector
B59: 52 | C59: JP1-JP3 | D59: Jumper
B60: 53 | C60: PCB | D60: 110mmX66mm (LXW), single layer, 2Oz., FR-4

Sheet msc
B2: fs(Hz) | D2: V(BR)DSS(V) | F2: VCS_N(V) | H2: AV | J2: tSS (mS) | L2: VVCChys (V)
B3: 65000 | D3: 950 | F3: 0.8 | H3: 2.03 | J3: 12 | L3: 6
B4: 100000 | D4: 800
B5: 125000 | D5: 750
D6: 700
D7: 650
D8: 600
D9: 550
D10: 500

Sheet Protection Mode
B3: ICE5xRxxxxxZx
B4: Protection Function | C4: Failure condition | D4: Normal Mode | E4: Burst Mode | G4: Protection Mode
E5: Burst On | F5: Burst Off
B6: VCC Over Voltage | C6: Vcc > 25.5 V & last for 55 μs | D6: √ | E6: √ | F6: x | G6: Odd Skip Auto Restart
B7: VCC Under Voltage | C7: Vcc < 10 V & last for 50 μs | D7: √ | E7: √ | F7: √ | G7: Auto Restart
B8: Over Load | C8: VFB > 2.73 V & last for 54 ms | D8: √ | E8: x | F8: x | G8: Odd Skip Auto Restart
B9: Over Temperature of controller | C9: TJ > 140°C (40°C Hysteresis to reset OTP) | D9: √ | E9: √ | F9: √ | G9: Non switch Auto Restart
